fUSD/lending_fUSD_20260605
["ID","MTS","AMOUNT","RATE_DAILY","PERIOD"]
[424127213,1780605057000,-1541.829306,0.00033815,7]
[424127211,1780605057000,-1541.829306,0.00033815,7]
[424127207,1780605057000,-4199.64510834,0.00033781,7]
[424127204,1780605057000,-46309.20123051,0.00033741,4]
[424127214,1780605057000,-151.0,0.00033815,7]
[424127288,1780605058000,-3206.33486172,0.00034921,2]
[424127280,1780605058000,-6357.9876,0.00034908,2]
[424127283,1780605058000,-1355.83682735,0.00034921,2]
[424127284,1780605058000,-300.0,0.00034921,2]
[424127281,1780605058000,-300.0,0.00034921,2]
[424127270,1780605058000,-500.0,0.0003457,2]
[424127290,1780605058000,-300.41007141,0.00034921,2]
[424127287,1780605058000,-551.49884089,0.00034921,2]
[424127274,1780605058000,-889.17,0.00034707,7]
[424127271,1780605058000,-1000.0,0.0003457,2]
[424127282,1780605058000,-3206.33486172,0.00034921,2]
[424127289,1780605058000,-768.77828757,0.00034921,2]
[424127291,1780605058000,-300.0,0.00034921,2]
[424127302,1780605058000,-967.8691092,0.0003493,60]
[424127292,1780605058000,-300.0,0.00034921,2]
[424127286,1780605058000,-3206.33486172,0.00034921,2]
[424127294,1780605058000,-300.0,0.00034921,2]
[424127293,1780605058000,-452.9387939,0.00034921,2]
[424127297,1780605058000,-300.0,0.00034921,2]
[424127298,1780605058000,-300.0,0.00034921,2]
[424127301,1780605058000,-719.0682452,0.0003493,60]
[424127300,1780605058000,-300.0,0.00034921,2]
[424127299,1780605058000,-300.0,0.00034921,2]
[424127295,1780605058000,-300.0,0.00034921,2]
[424127296,1780605058000,-300.0,0.00034921,2]
[424127310,1780605058000,-162.5045091,0.0003493,60]
[424127272,1780605058000,-504.0,0.00034689,10]
[424127285,1780605058000,-3206.33486172,0.00034921,2]
[424127273,1780605058000,-4932.1,0.00034707,2]
[424127247,1780605058000,-6070.0,0.0003414,2]
[424127278,1780605058000,-1965.63397015,0.00034883,2]
[424127245,1780605058000,-1226.0,0.0003414,2]
[424127249,1780605058000,-186.05059448,0.00034186,2]
[424127246,1780605058000,-3641.0,0.0003414,2]
[424127306,1780605058000,-924.8490197,0.0003493,60]
[424127248,1780605058000,-3468.4,0.00034182,7]
[424127250,1780605058000,-150.0,0.0003419,2]
[424127254,1780605058000,-500.0,0.00034224,2]
[424127253,1780605058000,-500.0,0.00034224,2]
[424127251,1780605058000,-277.28,0.000342,11]
[424127252,1780605058000,-160.0,0.000342,14]
[424127261,1780605058000,-1688.67,0.000344,7]
[424127262,1780605058000,-400.0,0.00034453,2]
[424127263,1780605058000,-400.0,0.00034453,2]
[424127279,1780605058000,-1500.0,0.000349,7]
[424127257,1780605058000,-500.0,0.00034224,2]
[424127255,1780605058000,-500.0,0.00034224,2]
[424127256,1780605058000,-625.85,0.00034224,2]
[424127265,1780605058000,-7021.7671628,0.00034455,2]
[424127260,1780605058000,-183.37,0.00034247,120]
[424127264,1780605058000,-400.45701247,0.00034453,2]
[424127259,1780605058000,-1000.0,0.00034247,120]
[424127266,1780605058000,-20015.04113964,0.000345,30]
[424127267,1780605058000,-316.13,0.000345,13]
[424127269,1780605058000,-339.4217023,0.00034564,5]
[424127275,1780605058000,-1500.0,0.00034795,2]
[424127268,1780605058000,-1781.45481,0.000345,120]
[424127277,1780605058000,-1501.0,0.00034883,3]
[424127276,1780605058000,-598.58169926,0.00034857,11]
[424127258,1780605058000,-917.24,0.00034224,2]
[424127314,1780605058000,-890.4991091,0.0003493,60]
[424127311,1780605058000,-554.4033122,0.0003493,60]
[424127307,1780605058000,-500.0,0.0003493,60]
[424127342,1780605058000,-1278.75489822,0.00035263,2]
[424127341,1780605058000,-1304.96327993,0.00035263,2]
[424127347,1780605058000,-1601.8575281,0.00035312,120]
[424127350,1780605058000,-4932.12,0.00035392,2]
[424127352,1780605058000,-1109.84457657,0.000354,5]
[424127348,1780605058000,-939.589,0.00035365,41]
[424127349,1780605058000,-7094.0,0.00035374,30]
[424127343,1780605058000,-1337.49995464,0.00035263,2]
[424127346,1780605058000,-6357.9876,0.00035282,2]
[424127344,1780605058000,-1277.02276303,0.00035263,2]
[424127345,1780605058000,-504.0,0.0003527,10]
[424127351,1780605058000,-889.17,0.00035392,7]
[424127353,1780605058000,-6357.9876,0.00035407,2]
[424127338,1780605058000,-160.0,0.000352,13]
[424127355,1780605058000,-8280.72792878,0.00035452,2]
[424127356,1780605058000,-5000.0,0.00035452,2]
[424127358,1780605058000,-5000.0,0.00035452,2]
[424127354,1780605058000,-167.8,0.0003542,30]
[424127366,1780605058000,-6357.9876,0.00035532,2]
[424127360,1780605058000,-1817.868299,0.00035481,30]
[424127359,1780605058000,-5000.0,0.00035452,2]
[424127365,1780605058000,-200.0,0.000355,14]
[424127361,1780605058000,-1817.868299,0.00035481,30]
[424127364,1780605058000,-16992.64812045,0.000355,30]
[424127362,1780605058000,-1817.868299,0.00035481,30]
[424127304,1780605058000,-500.0,0.0003493,60]
[424127368,1780605058000,-500.0,0.00035535,11]
[424127367,1780605058000,-500.0,0.00035535,11]
[424127357,1780605058000,-5000.0,0.00035452,2]
[424127336,1780605058000,-6357.9876,0.00035158,2]
[424127363,1780605058000,-1817.868299,0.00035481,30]
[424127337,1780605058000,-173.85,0.000352,17]
[424127335,1780605058000,-350.0,0.00035139,37]
[424127313,1780605058000,-500.0,0.0003493,60]
[424127309,1780605058000,-351.7175535,0.0003493,60]
[424127305,1780605058000,-562.9797939,0.0003493,60]
[424127303,1780605058000,-151.8478076,0.0003493,60]
[424127308,1780605058000,-891.1008483,0.0003493,60]
[424127315,1780605058000,-500.0,0.0003493,60]
[424127316,1780605058000,-500.0,0.0003493,60]
[424127327,1780605058000,-151.0,0.00035,7]
[424127326,1780605058000,-959.27,0.00035,14]
[424127317,1780605058000,-791.896713,0.0003493,60]
[424127319,1780605058000,-155.38,0.00035,2]
[424127318,1780605058000,-277.18,0.00034932,120]
[424127321,1780605058000,-388.45,0.00035,6]
[424127312,1780605058000,-500.0,0.0003493,60]
[424127320,1780605058000,-3166.4080724,0.00035,4]
[424127334,1780605058000,-1688.67,0.00035085,7]
[424127331,1780605058000,-200.0,0.00035,120]
[424127339,1780605058000,-160.0,0.000352,13]
[424127333,1780605058000,-6357.9876,0.00035033,2]
[424127325,1780605058000,-419.87027685,0.00035,120]
[424127332,1780605058000,-231.5796635,0.00035026,2]
[424127328,1780605058000,-151.0,0.00035,7]
[424127340,1780605058000,-160.0,0.000352,13]
[424127330,1780605058000,-216.3649288,0.00035,120]
[424127324,1780605058000,-463.89508061,0.00035,30]
[424127323,1780605058000,-526.0,0.00035,5]
[424127322,1780605058000,-152290.50674097,0.00035,2]
[424127329,1780605058000,-151.0,0.00035,7]
[424127404,1780605059000,-241.69148562,0.00035852,2]
[424127407,1780605059000,-200.0,0.00035907,5]
[424127403,1780605059000,-504.0,0.00035851,11]
[424127405,1780605059000,-150.0,0.00035899,2]
[424127409,1780605059000,-151.0,0.00035916,14]
[424127401,1780605059000,-200.0,0.00035821,5]
[424127400,1780605059000,-200.0,0.00035821,5]
[424127402,1780605059000,-150.0,0.0003585,120]
[424127399,1780605059000,-200.0,0.0003582,5]
[424127397,1780605059000,-200.0,0.0003582,5]
[424127406,1780605059000,-6357.9876,0.00035906,2]
[424127411,1780605059000,-835323.5838,0.0003595,30]
[424127417,1780605059000,-501.07670411,0.00035951,2]
[424127415,1780605059000,-408.05579473,0.00035951,2]
[424127413,1780605059000,-407.0,0.00035951,2]
[424127412,1780605059000,-150.0,0.00035951,2]
[424127414,1780605059000,-150.33205177,0.00035951,2]
[424127420,1780605059000,-216.36941492,0.00036,60]
[424127416,1780605059000,-500.0,0.00035951,2]
[424127418,1780605059000,-400.0,0.00035951,2]
[424127419,1780605059000,-400.0,0.00035951,2]
[424127422,1780605059000,-3454.22575266,0.00036,5]
[424127421,1780605059000,-585.61905373,0.00036,2]
[424127432,1780605059000,-94810.91404648,0.000361,2]
[424127408,1780605059000,-200.0,0.00035911,5]
[424127410,1780605059000,-1601.8575281,0.00035916,120]
[424127398,1780605059000,-200.0,0.0003582,5]
[424127384,1780605059000,-1000.0,0.00035616,120]
[424127387,1780605059000,-151.0,0.00035654,2]
[424127423,1780605059000,-283.31882962,0.00036013,60]
[424127378,1780605059000,-1251.0,0.00035581,3]
[424127379,1780605059000,-1579.0,0.00035589,120]
[424127370,1780605059000,-500.0,0.00035535,11]
[424127371,1780605059000,-500.0,0.00035535,11]
[424127375,1780605059000,-189.0,0.00035575,2]
[424127369,1780605059000,-500.0,0.00035535,11]
[424127376,1780605059000,-1365.0,0.0003558,2]
[424127372,1780605059000,-500.0,0.00035535,11]
[424127374,1780605059000,-200.0,0.00035575,2]
[424127377,1780605059000,-1353.0,0.0003558,2]
[424127373,1780605059000,-200.0,0.00035575,2]
[424127392,1780605059000,-150.0,0.000357,120]
[424127381,1780605059000,-2000.0,0.00035616,30]
[424127380,1780605059000,-1579.0,0.00035589,120]
[424127382,1780605059000,-614.22038512,0.00035616,120]
[424127386,1780605059000,-166.23,0.00035616,30]
[424127396,1780605059000,-150.0,0.000358,120]
[424127395,1780605059000,-6357.9876,0.00035781,2]
[424127394,1780605059000,-1688.68,0.0003577,7]
[424127390,1780605059000,-150.0,0.00035661,30]
[424127391,1780605059000,-292.0,0.00035661,30]
[424127389,1780605059000,-6357.9876,0.00035656,2]
[424127385,1780605059000,-151.0,0.00035616,2]
[424127388,1780605059000,-151.0,0.00035654,2]
[424127393,1780605059000,-150.0,0.0003575,120]
[424127383,1780605059000,-181.52,0.00035616,2]
[424127426,1780605059000,-151.19,0.0003605,60]
[424127457,1780605059000,-643.86,0.00036476,2]
[424127424,1780605059000,-6357.9876,0.0003603,2]
[424127461,1780605059000,-1000.0,0.00036627,3]
[424127459,1780605059000,-6357.9876,0.00036529,2]
[424127460,1780605059000,-700.0,0.00036547,2]
[424127458,1780605059000,-200.0,0.000365,14]
[424127469,1780605059000,-156.494329,0.00036656,30]
[424127470,1780605059000,-834.811559,0.00036656,7]
[424127462,1780605059000,-6357.9876,0.00036654,2]
[424127467,1780605059000,-151.0,0.00036656,30]
[424127463,1780605059000,-625421.59953,0.00036656,2]
[424127468,1780605059000,-151.0,0.00036656,30]
[424127464,1780605059000,-2000.3714,0.00036656,2]
[424127466,1780605059000,-151.0,0.00036656,30]
[424127456,1780605059000,-500.0,0.00036451,14]
[424127465,1780605059000,-10000.0,0.00036656,2]
[424127483,1780605059000,-749.673451,0.00036656,30]
[424127482,1780605059000,-749.673451,0.00036656,30]
[424127480,1780605059000,-557.281833,0.00036656,30]
[424127471,1780605059000,-834.811559,0.00036656,7]
[424127481,1780605059000,-749.673451,0.00036656,30]
[424127477,1780605059000,-151.0,0.00036656,30]
[424127473,1780605059000,-834.811559,0.00036656,7]
[424127474,1780605059000,-151.0,0.00036656,30]
[424127478,1780605059000,-557.281833,0.00036656,30]
[424127479,1780605059000,-557.281833,0.00036656,30]
[424127476,1780605059000,-557.281833,0.00036656,30]
[424127430,1780605059000,-1052.08,0.00036096,120]
[424127472,1780605059000,-834.811559,0.00036656,7]
[424127455,1780605059000,-598.58169926,0.00036442,11]
[424127475,1780605059000,-151.0,0.00036656,30]
[424127452,1780605059000,-500.0,0.00036438,60]
[424127454,1780605059000,-900.0,0.00036438,60]
[424127425,1780605059000,-1601.8575281,0.00036035,120]
[424127427,1780605059000,-1601.8575281,0.00036051,120]
[424127429,1780605059000,-2000.0,0.00036096,120]
[424127428,1780605059000,-155.360599,0.0003606,9]
[424127433,1780605059000,-1601.8575281,0.00036138,120]
[424127440,1780605059000,-176.62,0.000362,16]
[424127442,1780605059000,-167.8,0.0003625,120]
[424127443,1780605059000,-6357.9876,0.0003628,2]
[424127441,1780605059000,-151.19723996,0.0003625,60]
[424127434,1780605059000,-151.19,0.0003615,60]
[424127444,1780605059000,-482.08,0.00036284,2]
[424127437,1780605059000,-19647.0,0.00036164,2]
[424127431,1780605059000,-151.0,0.00036097,14]
[424127439,1780605059000,-160.0,0.000362,16]
[424127436,1780605059000,-6357.9876,0.00036155,2]
[424127448,1780605059000,-500.0,0.00036399,11]
[424127449,1780605059000,-39847.0,0.000364,30]
[424127453,1780605059000,-500.0,0.00036438,60]
[424127484,1780605059000,-749.673451,0.00036656,30]
[424127451,1780605059000,-504.0,0.00036432,12]
[424127450,1780605059000,-6357.9876,0.00036404,2]
[424127447,1780605059000,-1156.78,0.00036399,11]
[424127438,1780605059000,-176.62,0.000362,16]
[424127435,1780605059000,-3468.4,0.00036153,30]
[424127445,1780605059000,-277.18,0.00036329,120]
[424127446,1780605059000,-500.0,0.00036399,11]
[424127505,1780605060000,-500.0,0.0003686,120]
[424127504,1780605060000,-924.8490196,0.0003686,120]
[424127510,1780605060000,-242.963508,0.0003686,120]
[424127519,1780605060000,-2320.0,0.00036937,11]
[424127517,1780605060000,-1043.34239283,0.0003687,7]
[424127521,1780605060000,-164.0,0.00036945,11]
[424127516,1780605060000,-791.896713,0.0003686,120]
[424127513,1780605060000,-890.499109,0.0003686,120]
[424127514,1780605060000,-500.0,0.0003686,120]
[424127515,1780605060000,-500.0,0.0003686,120]
[424127518,1780605060000,-5131.66848983,0.00036886,2]
[424127520,1780605060000,-2320.0,0.00036945,11]
[424127511,1780605060000,-500.0,0.0003686,120]
[424127522,1780605060000,-1592.0,0.00036946,11]
[424127526,1780605060000,-1592.0,0.0003696,11]
[424127501,1780605060000,-151.8478076,0.0003686,120]
[424127523,1780605060000,-2313.0,0.00036949,11]
[424127512,1780605060000,-500.0,0.0003686,120]
[424127507,1780605060000,-351.7175534,0.0003686,120]
[424127492,1780605060000,-2819.86622049,0.000368,30]
[424127499,1780605060000,-967.8691091,0.0003686,120]
[424127524,1780605060000,-1592.0,0.00036953,11]
[424127486,1780605060000,-464.04,0.00036769,10]
[424127489,1780605060000,-8544.81739266,0.000368,30]
[424127488,1780605060000,-245.91458161,0.000368,30]
[424127487,1780605060000,-350.0,0.00036794,42]
[424127485,1780605060000,-1601.8575281,0.0003675,120]
[424127490,1780605060000,-8544.81739265,0.000368,30]
[424127491,1780605060000,-8544.81739265,0.000368,30]
[424127495,1780605060000,-1281.48602248,0.00036849,7]
[424127494,1780605060000,-2819.86622047,0.000368,30]
[424127493,1780605060000,-2819.86622047,0.000368,30]
[424127496,1780605060000,-203.84771264,0.00036852,30]
[424127497,1780605060000,-719.0682451,0.0003686,120]
[424127498,1780605060000,-184.6368026,0.0003686,120]
[424127506,1780605060000,-891.1008482,0.0003686,120]
[424127509,1780605060000,-554.4033122,0.0003686,120]
[424127508,1780605060000,-162.5045091,0.0003686,120]
[424127500,1780605060000,-236.4667911,0.0003686,120]
[424127503,1780605060000,-562.9797939,0.0003686,120]
[424127502,1780605060000,-500.0,0.0003686,120]
[424127525,1780605060000,-164.0,0.00036958,11]
[424127534,1780605060000,-1078.26762782,0.00037052,20]
[424127528,1780605060000,-16482.96006044,0.00036988,120]
[424127547,1780605060000,-1047.98840404,0.00037106,20]
[424127554,1780605060000,-525.0,0.0003714,2]
[424127560,1780605060000,-179.39,0.000372,18]
[424127561,1780605060000,-1038.42974947,0.00037213,20]
[424127558,1780605060000,-1592.0,0.00037189,11]
[424127557,1780605060000,-6070.0,0.0003714,2]
[424127555,1780605060000,-1226.0,0.0003714,2]
[424127556,1780605060000,-3641.0,0.0003714,2]
[424127549,1780605060000,-1083.85902376,0.00037106,20]
[424127564,1780605060000,-1001.85001648,0.00037213,20]
[424127567,1780605060000,-1069.4594407,0.00037213,20]
[424127563,1780605060000,-1108.11855532,0.00037213,20]
[424127565,1780605060000,-1123.88388165,0.00037213,20]
[424127566,1780605060000,-1028.81696121,0.00037213,20]
[424127569,1780605060000,-1592.0,0.00037213,11]
[424127570,1780605060000,-6084.6892,0.00037235,30]
[424127568,1780605060000,-1105.31039789,0.00037213,20]
[424127527,1780605060000,-1000.0,0.00036986,120]
[424127562,1780605060000,-1065.72451909,0.00037213,20]
[424127548,1780605060000,-1072.9668275,0.00037106,20]
[424127559,1780605060000,-2320.0,0.00037189,11]
[424127550,1780605060000,-1070.43336483,0.00037106,20]
[424127529,1780605060000,-151.0,0.00037,60]
[424127546,1780605060000,-1138.5296019,0.00037106,20]
[424127530,1780605060000,-755.78194906,0.00037,10]
[424127531,1780605060000,-1358.09,0.00037,30]
[424127532,1780605060000,-504.0,0.00037012,12]
[424127533,1780605060000,-1118.54300903,0.00037052,20]
[424127535,1780605060000,-1075.62530741,0.00037052,20]
[424127539,1780605060000,-1045.41999513,0.00037052,20]
[424127537,1780605060000,-1017.33517688,0.00037052,20]
[424127538,1780605060000,-1062.17755692,0.00037052,20]
[424127536,1780605060000,-1006.4498997,0.00037052,20]
[424127553,1780605060000,-1273.0,0.0003714,2]
[424127543,1780605060000,-500.0,0.0003708,30]
[424127545,1780605060000,-1146.31723878,0.00037106,20]
[424127541,1780605060000,-167.8,0.0003708,60]
[424127540,1780605060000,-1103.56450385,0.00037052,20]
[424127544,1780605060000,-7094.0,0.00037082,30]
[424127551,1780605060000,-1028.45589661,0.00037106,20]
[424127542,1780605060000,-304.55614525,0.0003708,30]
[424127552,1780605060000,-1117.53172417,0.00037106,20]
[424127601,1780605061000,-5101.84499356,0.000375,120]
[424127599,1780605061000,-200.0,0.000375,15]
[424127598,1780605061000,-151.19220666,0.00037489,2]
[424127595,1780605061000,-500.0,0.00037449,2]
[424127596,1780605061000,-246.41431877,0.00037449,2]
[424127593,1780605061000,-150.0,0.00037449,2]
[424127602,1780605061000,-3000.0,0.000375,80]
[424127600,1780605061000,-82510.75482939,0.000375,2]
[424127603,1780605061000,-164.0,0.00037509,11]
[424127608,1780605061000,-1541.829306,0.00037536,28]
[424127610,1780605061000,-1541.829306,0.00037536,28]
[424127614,1780605061000,-187.729829,0.00037536,30]
[424127613,1780605061000,-187.729829,0.00037536,30]
[424127609,1780605061000,-1541.829306,0.00037536,28]
[424127611,1780605061000,-1541.829306,0.00037536,28]
[424127604,1780605061000,-2320.0,0.00037509,11]
[424127612,1780605061000,-151.0,0.00037536,30]
[424127607,1780605061000,-149085.8073814,0.00037536,2]
[424127597,1780605061000,-400.0,0.00037449,2]
[424127605,1780605061000,-2320.0,0.00037533,11]
[424127594,1780605061000,-407.0,0.00037449,2]
[424127572,1780605061000,-900.0,0.0003726,60]
[424127583,1780605061000,-864.52,0.00037298,5]
[424127571,1780605061000,-161.0,0.00037256,11]
[424127574,1780605061000,-1506.38216778,0.00037266,20]
[424127573,1780605061000,-1592.0,0.0003726,11]
[424127576,1780605061000,-161.0,0.00037273,11]
[424127575,1780605061000,-1592.0,0.00037269,11]
[424127606,1780605061000,-164.0,0.00037533,11]
[424127578,1780605061000,-1369.62890625,0.0003729,2]
[424127577,1780605061000,-164.0,0.00037284,11]
[424127579,1780605061000,-1369.62890625,0.0003729,2]
[424127592,1780605061000,-1024.03102744,0.00037449,2]
[424127585,1780605061000,-1592.0,0.00037305,11]
[424127580,1780605061000,-1592.0,0.00037291,11]
[424127586,1780605061000,-1601.8575281,0.00037325,120]
[424127588,1780605061000,-1601.8575281,0.00037333,120]
[424127587,1780605061000,-1601.8575281,0.00037325,120]
[424127590,1780605061000,-2320.0,0.00037384,11]
[424127582,1780605061000,-605.16,0.00037298,5]
[424127591,1780605061000,-151.19220666,0.00037389,2]
[424127581,1780605061000,-259.35,0.00037298,5]
[424127584,1780605061000,-164.0,0.00037299,11]
[424127589,1780605061000,-164.0,0.00037384,11]
[424127624,1780605061000,-1461.74,0.00037563,2]
[424127658,1780605061000,-9645.45091238,0.00037784,2]
[424127625,1780605061000,-164.0,0.00037571,11]
[424127649,1780605061000,-199.9421324,0.000377,120]
[424127650,1780605061000,-268.68421,0.000377,93]
[424127653,1780605061000,-268.68422,0.000377,93]
[424127652,1780605061000,-268.68421,0.000377,93]
[424127651,1780605061000,-268.68421,0.000377,93]
[424127642,1780605061000,-39847.0,0.000376,30]
[424127643,1780605061000,-1173.42607681,0.000376,120]
[424127644,1780605061000,-357.99,0.00037662,120]
[424127646,1780605061000,-164.0,0.00037673,11]
[424127641,1780605061000,-500.0,0.00037599,11]
[424127645,1780605061000,-1591.0,0.00037666,11]
[424127647,1780605061000,-151.19220666,0.00037689,2]
[424127654,1780605061000,-1119.0,0.00037704,11]
[424127657,1780605061000,-292.0,0.00037759,120]
[424127655,1780605061000,-277.2,0.00037726,120]
[424127659,1780605061000,-151.19220666,0.00037789,2]
[424127662,1780605061000,-120151.64,0.000378,2]
[424127661,1780605061000,-150.0,0.000378,33]
[424127660,1780605061000,-156.4477825,0.00037798,7]
[424127615,1780605061000,-187.729829,0.00037536,30]
[424127648,1780605061000,-150.0,0.00037694,2]
[424127640,1780605061000,-500.0,0.00037599,11]
[424127656,1780605061000,-150.0,0.00037759,120]
[424127638,1780605061000,-500.0,0.00037599,11]
[424127633,1780605061000,-151.19220666,0.00037589,2]
[424127626,1780605061000,-164.0,0.00037576,11]
[424127627,1780605061000,-1592.0,0.0003758,11]
[424127617,1780605061000,-2000.0,0.00037562,30]
[424127623,1780605061000,-256.57751,0.00037562,30]
[424127616,1780605061000,-187.729829,0.00037536,30]
[424127619,1780605061000,-151.0,0.00037562,30]
[424127620,1780605061000,-256.57751,0.00037562,30]
[424127618,1780605061000,-151.0,0.00037562,30]
[424127621,1780605061000,-256.57751,0.00037562,30]
[424127622,1780605061000,-256.57751,0.00037562,30]
[424127631,1780605061000,-2320.0,0.00037583,11]
[424127636,1780605061000,-500.0,0.00037599,11]
[424127632,1780605061000,-467.1558004,0.00037587,2]
[424127637,1780605061000,-500.0,0.00037599,11]
[424127635,1780605061000,-504.0,0.00037593,13]
[424127634,1780605061000,-2320.0,0.00037593,11]
[424127639,1780605061000,-500.0,0.00037599,11]
[424127629,1780605061000,-198.44990076,0.0003758,30]
[424127628,1780605061000,-1572.0,0.0003758,11]
[424127630,1780605061000,-500.0,0.0003758,30]
[424127701,1780605062000,-500.0,0.00037807,11]
[424127698,1780605062000,-500.0,0.00037807,11]
[424127702,1780605062000,-500.0,0.00037807,11]
[424127703,1780605062000,-500.0,0.00037807,11]
[424127699,1780605062000,-500.0,0.00037807,11]
[424127696,1780605062000,-1156.78,0.00037807,11]
[424127697,1780605062000,-1156.78,0.00037807,11]
[424127695,1780605062000,-1156.78,0.00037807,11]
[424127693,1780605062000,-500.0,0.00037807,11]
[424127705,1780605062000,-500.0,0.00037807,11]
[424127704,1780605062000,-485.80277761,0.00037807,11]
[424127700,1780605062000,-500.0,0.00037807,11]
[424127707,1780605062000,-405.0,0.00037808,2]
[424127710,1780605062000,-500.0,0.00037808,11]
[424127714,1780605062000,-500.0,0.00037808,11]
[424127706,1780605062000,-246.39631724,0.00037807,11]
[424127717,1780605062000,-500.0,0.00037808,11]
[424127716,1780605062000,-250.08369495,0.00037808,11]
[424127709,1780605062000,-1335.0,0.00037808,2]
[424127711,1780605062000,-500.0,0.00037808,11]
[424127715,1780605062000,-500.0,0.00037808,11]
[424127712,1780605062000,-579.512062,0.00037808,11]
[424127713,1780605062000,-500.0,0.00037808,11]
[424127719,1780605062000,-500.0,0.00037808,11]
[424127720,1780605062000,-500.0,0.00037808,11]
[424127721,1780605062000,-500.0,0.00037808,11]
[424127694,1780605062000,-1156.78,0.00037807,11]
[424127708,1780605062000,-1328.0,0.00037808,2]
[424127690,1780605062000,-500.0,0.00037807,11]
[424127667,1780605062000,-500.0,0.000378,2]
[424127684,1780605062000,-500.0,0.00037807,11]
[424127665,1780605062000,-500.0,0.000378,2]
[424127663,1780605062000,-500.0,0.000378,2]
[424127664,1780605062000,-500.0,0.000378,2]
[424127675,1780605062000,-500.0,0.00037807,11]
[424127677,1780605062000,-500.0,0.00037807,11]
[424127669,1780605062000,-500.0,0.000378,2]
[424127726,1780605062000,-500.0,0.00037808,11]
[424127673,1780605062000,-27536.76,0.000378,2]
[424127678,1780605062000,-563.3655753,0.00037807,11]
[424127668,1780605062000,-688.78,0.000378,2]
[424127676,1780605062000,-417.13045272,0.00037807,11]
[424127671,1780605062000,-500.0,0.000378,2]
[424127672,1780605062000,-625.85,0.000378,2]
[424127666,1780605062000,-500.0,0.000378,2]
[424127670,1780605062000,-500.0,0.000378,2]
[424127674,1780605062000,-30000.0,0.000378,2]
[424127679,1780605062000,-500.0,0.00037807,11]
[424127681,1780605062000,-500.0,0.00037807,11]
[424127688,1780605062000,-500.0,0.00037807,11]
[424127689,1780605062000,-500.0,0.00037807,11]
[424127692,1780605062000,-500.0,0.00037807,11]
[424127686,1780605062000,-500.0,0.00037807,11]
[424127683,1780605062000,-630.74710949,0.00037807,11]
[424127687,1780605062000,-500.0,0.00037807,11]
[424127682,1780605062000,-500.0,0.00037807,11]
[424127680,1780605062000,-500.0,0.00037807,11]
[424127691,1780605062000,-500.0,0.00037807,11]
[424127685,1780605062000,-500.0,0.00037807,11]
[424127722,1780605062000,-500.0,0.00037808,11]
[424127718,1780605062000,-500.0,0.00037808,11]
[424127724,1780605062000,-500.0,0.00037808,11]
[424127757,1780605062000,-500.0,0.00037808,11]
[424127759,1780605062000,-500.0,0.00037808,11]
[424127760,1780605062000,-652.81,0.00037808,11]
[424127764,1780605062000,-500.0,0.00037808,11]
[424127761,1780605062000,-1181.76,0.00037808,11]
[424127765,1780605062000,-500.0,0.00037808,11]
[424127762,1780605062000,-500.0,0.00037808,11]
[424127763,1780605062000,-500.0,0.00037808,11]
[424127767,1780605062000,-500.0,0.00037808,11]
[424127777,1780605062000,-500.0,0.00037808,11]
[424127772,1780605062000,-500.0,0.00037808,11]
[424127770,1780605062000,-500.0,0.00037808,11]
[424127769,1780605062000,-500.0,0.00037808,11]
[424127756,1780605062000,-500.0,0.00037808,11]
[424127771,1780605062000,-500.0,0.00037808,11]